Date of the transaction,Department which incurred the expenditure,Beneficiary, Net amount in � ,Summary of the purpose of the expenditure
28/06/2022,,WAITROSE.COM,79.35,
28/06/2022,,Fens Falconry,338.68,
28/06/2022,Museum S/W,TESCO STORE 3130,40.29,Volunteers' Tea Party catering and recognition gifts for volunteers
27/06/2022,Museum S/W,COOK - SAFFRON WALDEN,30.94,Volunteers' Tea Party Catering
28/06/2022,,TESCO STORE 2574,3.15,
27/06/2022,Museum S/W,WH SMITH,5.8,Stationery for Volunteers' Tea Party
24/06/2022,,MUIR VEHICLE SERVICES,54,
25/06/2022,,B&M 051 - BRAINTREE,4,
23/06/2022,,PREMIER INN,364.5,
22/06/2022,,WWW.LBSBMONLINE.CO.UK,56.4,
23/06/2022,,MUIR VEHICLE SERVICES,90.9,
22/06/2022,Museum S/W,WAITROSE 101,3,"Initial Transaction, excluding VAT receipt, refunded and reprocessed"
22/06/2022,Museum S/W,WAITROSE 101,2.82,Refreshments for Volunteers' Tea Party
22/06/2022,Museum S/W,WAITROSE 101,-3,Refunded transaction
23/06/2022,Museum S/W,TESCO STORE 3130,12.2,
22/06/2022,,AIR QUALITY NEWS,114,
22/06/2022,,AMZNMKTPLACE AMAZON.CO,126.68,
21/06/2022,Office Services,TESCO STORE 2574,10.15,Refreshments provided as part of room hire to third party
20/06/2022,New Depot (Canfield),TESCO STORE 2134,35,12No mugs @ 1.75 and 12No side plates @ 1.75 for room hire at Little Canfield
20/06/2022,New Depot (Canfield),B&M 051 - BRAINTREE,23.75,"Cannisters (for storage of tea, coffee and sugar) for provision of refreshments for room hire at Little Canfield"
20/06/2022,,RICARDO-AEA LIMITE,78,
19/06/2022,New Depot (Canfield),TESCO STORE 2134,64.17,150No Water Glasses @ 30p and 8No Water Jugs @ 4 each for Conference Suite rooms at Little Canfield
17/06/2022,,AMZNMktplace,17.27,
16/06/2022,Sheltered Housing,AMZ Amazon US,-16.54,Refund for dog signs
15/06/2022,Waste Management,B&M RETAIL LTD,7,Cutlery for HCLE Kitchen
15/06/2022,Museum S/W,DUNMOW GROUP - VT 2,708,
14/06/2022,Museum S/W,AMZNMktplace,7.47,Filler for exhibition
14/06/2022,Waste Management,WWW.TCFIXINGS.CO.UK,18.9,Combination Padlock For Fuel Tank At Little Canfield Depot
14/06/2022,Museum S/W,AMZNMktplace,8.25,Masking tape for exhitbion
14/06/2022,Museum S/W,AMZNMktplace,15.98,Paint pens for exhibition
13/06/2022,Waste Management,B&M RETAIL LTD,40,Water for Waste crews during heatwave
13/06/2022,Homelessness,BOILERJUICE,520.98,Oil delivery
10/06/2022,New Depot (Canfield),C BREWER & SONS LT,65.34,Paint for ballot
10/06/2022,Waste Management,DVSA,23,Driver CPC Fee 
08/06/2022,Museum S/W,HOMEBASE LTD 643,15.42,Screws for exhibition
08/06/2022,,WWW.MONEYCLAIM.GOV,83,
08/06/2022,,POSTURITE LTD,180,
08/06/2022,,DUNMOW GROUP - VT 2,732,
07/06/2022,Sheltered Housing,AMZNMktplace,16.54,Dog signs 
01/06/2022,,SurveyMonkey,384,
30/05/2022,Waste Management,HOMEBASE LTD 619,29.08,Paint for damaged fence following refuse vehicle damage
31/05/2022,Housing Services,AMZNMktplace,37.49,Wireless mics for meetings
31/05/2022,Waste Management,B&M RETAIL LTD,22.49,Replacement picket fencing
30/05/2022,Highway Ranger,DUNMOW FENCING SUPPLIE,5.25,Fencing
26/05/2022,,WWW.SCREWFIX.COM,14.99,
30/05/2022,New Depot (Canfield),COYLES CAR CARE,31.6,Spare Keys
27/05/2022,Saffron Walden Offices,WWW.OFFICEBOFFINS.CO.U,310.95,Replacement Office Chair
26/05/2022,Waste Management,DVLA VEHICLE TAX,302.5,VED
26/05/2022,"Depot, Gt Dunmow",DVSA,11,HGV hazard perception
26/05/2022,"Depot, Gt Dunmow",DVSA,26,HGV theory
25/05/2022,,QD-SAFFRON WALDEN,3.28,
25/05/2022,Waste Management,AMZNMktplace,363.97,Cool Boxes
23/05/2022,,WWW.SAFEOPTIONS.CO.UK,31.8,
22/05/2022,Sheltered Housing,AMZNMKTPLACE AMAZON.CO,31.98,Plates
20/05/2022,Museum S/W,WH SMITH,11.65,Sub Dividers for Welcome Desk Useful Information folder
20/05/2022,Sheltered Housing,A C LEIGH,86.23,Master key padlock 
20/05/2022,Sheltered Housing,AMZNMKTPLACE AMAZON.CO,29.04,Crockery 
20/05/2022,Museum S/W,Amazon.co.uk 253OX9BI4,38.7,Card for activity packs
22/05/2022,Sheltered Housing,AMZNMKTPLACE AMAZON.CO,34.96,Glasses 
19/05/2022,Vehicle Maintenance,AMZNMKTPLACE AMAZON.CO,7.07,Retractable Safety ID Holders for Workshop
19/05/2022,New Depot (Canfield),SQ  SIGNS 'N' SUCH LTD,665,Signage at Little Canfield
18/05/2022,New Depot (Canfield),TESCO STORE 2172,4.17,50No key rings for Little Canfield
18/05/2022,Waste Management,B&M RETAIL LTD,25,i-Phone Charging Cables For Environmental Services
18/05/2022,"Depot, Gt Dunmow",COYLES CAR CARE,12.97,Padlock and extra keys
18/05/2022,"Depot, Gt Dunmow",COYLES CAR CARE,44.89,Keys cut
17/05/2022,Highway Ranger,RIDGEONS SAFFRON WALDE,136.18,Various Items 
17/05/2022,,CHARTERED INSTITUTE OF,198,
17/05/2022,Sheltered Housing,AMZNMktplace,133.31,Garden furniture
16/05/2022,Waste Management,TESCO STORE 2574,31.46,Refreshments for BBQ at Canfield Depot for staff welcome
16/05/2022,Waste Management,TESCO STORE 2574,73.78,BBQ Materials
14/05/2022,Vehicle Maintenance,TRAVIS PERKINS,179.54,Workshop racking materials
12/05/2022,Vehicle Maintenance,TOOLSTATION LIMITED,35.18,Cargo lash and ratchets
15/05/2022,Vehicle Maintenance,Amazon.co.uk 258289ZU4,37.58,New key fobs
11/05/2022,New Depot (Canfield),WWW.SCREWFIX.COM,104.93,Hazard tape for Little Canfield
12/05/2022,Waste Management,TESCO STORE 2574,66,"BBQ Charcoal, lump wood and fire lighters"
12/05/2022,,QD-SAFFRON WALDEN,4.99,
11/05/2022,Homelessness,ARGOS LTD,33.33,Curtain poles 
11/05/2022,Revenues Admin,SOUTHEND COUNTY,69,
11/05/2022,New Depot (Canfield),SECURITYSAFETYPRODUCTS,240.6,Safety signage for Little Canfield
10/05/2022,New Depot (Canfield),SECURITYSAFETYPRODUCTS,"1,127.99",Safety Signage for Little Canfield
09/05/2022,Little Canfield Business Park,WICKES BISHOP'S STORTF,7.08,Plaster board fixing
09/05/2022,Housing Services,MIDLANDS PRINTING COMP,179.98,Flag 
09/05/2022,,WWW.SAFEOPTIONS.CO.UK,195,
06/05/2022,Sheltered Housing,TESCO STORE 2172,7.5,Laptop mouse
08/05/2022,Sheltered Housing,AMZNMKTPLACE AMAZON.CO,29.07,Table tennis set 
05/05/2022,Waste Management,DVLA VEHICLE TAX,292.5,Vehicle tax
08/05/2022,Sheltered Housing,Amazon.co.uk 2D4ZS85O4,26.67,Wood paint
05/05/2022,Sheltered Housing,Amazon.co.uk 2D8MV0EA4,28.03,Patio Magic
04/05/2022,Museum S/W,QD-SAFFRON WALDEN,10.38,Freezer bags
04/05/2022,Sheltered Housing,RIDGEONS SAFFRON WALDE,23.18,Plywood 
04/05/2022,Communications,AMZNMKTPLACE AMAZON.CO,16.99,Camera Tripod
04/05/2022,Little Canfield Business Park,TESCO STORE 2574,19.7,Shopping for visitors
02/05/2022,Sheltered Housing,AMZNMKTPLACE AMAZON.CO,17.62,Glassess 
02/05/2022,Sheltered Housing,AMZNMktplace,20.82,Laminator
29/04/2022,Sheltered Housing,AMZNMKTPLACE AMAZON.CO,17.64,Glasses
28/04/2022,Sheltered Housing,B & Q 1198,80.25,Sundries for volunteers - benches at F/A
29/04/2022,Housing Services,TESCO STORE 2574,100,Card for TP refreshments
28/04/2022,Little Canfield Business Park,SIMPLY SAFETY GROUP,73.03,Fire grab box
28/04/2022,Sheltered Housing,AMZNMKTPLACE AMAZON.CO,16.65,Batteries for sheltered sites
28/04/2022,Sheltered Housing,AMZNMktplace,10.27,Roasting tin
28/04/2022,Sheltered Housing,AMZNMktplace,10.27,Roasting tin 
28/04/2022,Sheltered Housing,Amazon.co.uk 2P5AX7SG4,56.67,Furniture paint for benches at F/A
28/04/2022,Sheltered Housing,AMZNMKTPLACE AMAZON.CO,163.25,Fobs for sheltered sites
27/04/2022,Sheltered Housing,AMZNMktplace,21.22,Jugs
28/04/2022,Sheltered Housing,AMZNMktplace,54.85,Cooking pans and gravy boats 
26/04/2022,Museum S/W,AMZNMKTPLACE AMAZON.CO,49.98,Projector stand for talks
25/04/2022,Museum S/W,POST OFFICE COUNTER,4.45,Postage
25/04/2022,Museum S/W,eBay O 02-08553-86415,27.99,Paper bags for activity packs
21/04/2022,"Depot, Saffron Walden",DVLA VEHICLE TAX,107.5,Vehicle tax
21/04/2022,"Depot, Saffron Walden",DVLA VEHICLE TAX,562.5,Vehicle tax
22/04/2022,Sheltered Housing,SP CROSSWORDSITE,11.02,Crossword for WOW
19/04/2022,,R H ENVIRONMENTAL LTD,561,
14/04/2022,Museum S/W,EposNow,58.49,Pro cash drawer and delivery
12/04/2022,Licensing,AMZNMKTPLACE AMAZON.CO,20.57,CD/DVD drive to read CCTV recording
11/04/2022,Homelessness,PREMIER INN,337.5,Accommodation for Ukrainian refugee
08/04/2022,Sheltered Housing,AMZNMktplace,168.74,Garden table
08/04/2022,Chief Executive,DEMOCRACY VOLUNTEERS,395,Attendance at the Swedish Parliamentary Elections
07/04/2022,,KING ARMS HOTEL,9.6,
07/04/2022,New Depot (Canfield),WIRE FREE PROTECTION L,"1,950.00",Fire Risk Assessment for Little Canfield
06/04/2022,,AMZNMktplace,72.95,
06/04/2022,Sheltered Housing,AMZNMKTPLACE AMAZON.CO,22.49,Pin board 
06/04/2022,Museum S/W,COLORCRAFT,11.71,Tweezers and paint for taxidermy conservation
05/04/2022,Commercial Team,LEGAL TRAINING CONSULT,175,UK Food Law Conference
05/04/2022,Sheltered Housing,AMZNMKTPLACE AMAZON.CO,54.97,Arm chair covers 
04/04/2022,,WWW.DORRINGTONS.COM,174.45,
01/04/2022,Street Serv Man,WWW.CIWM.CO.UK,130,CIWM Annual Membership
02/04/2022,New Depot (Canfield),TIMPSON LTD,13.33,2No entrance keys for Little Canfield
31/03/2022,Museum S/W,WWW.BAYPLASTICS.CO.UK,412.1,Perspex cubes for display
31/03/2022,Museum S/W,WWW.BAYPLASTICS.CO.UK,"1,385.58",Perspex display cubes
30/03/2022,Development Control Appeals,WAITROSE 135,37.9,Refreshments
31/03/2022,Waste Management,AMZNMktplace,31.16,1 x pair sealskin waterproof/windproof gloves additional PPE requirement
31/03/2022,Chief Executive,TESCO STORE 3130,3.7,Difference on Clubcard vouchers for refreshments at CMT awayday
01/07/2022,Museum S/W,PAYPAL  EYEDENTITY,53,Taxidermy glass eyes for conservation of historic natural history specimens
01/07/2022,,RICARDO-AEA LTD,99,
03/07/2022,Sheltered Housing,AMZ Amazon US,-17.27,Refund - dog signs
03/07/2022,Museum S/W,MARKS&SPENCER PLC,4,Refreshments for volunteers 
03/07/2022,Museum S/W,MARKS&SPENCER PLC,14,Thank you gifts for volunteer stock take helpers
04/07/2022,Revenues Admin,SOUTHEND COUNTY,667,
05/07/2022,Development Control,WWW.HAYMARKET.COM,440,Annual subscription to Planning Resource for Director Planning
05/07/2022,Animal Warden,DVLA VEHICLE TAX,292.5,Vehicle tax
06/07/2022,Sheltered Housing,AMZNMktplace,78.33,Raised trough- Sheltered
06/07/2022,Sheltered Housing,AMZNMktplace,72.38,Garden hose reel - Sheltered
06/07/2022,Museum S/W,CLINTONS 756,3.73,Greetings cards for volunteers
06/07/2022,Chief Executive,TESCO STORES 6812,19.6,Refreshments for Chief Executive Meeting with DWP
06/07/2022,Sheltered Housing,AMZNMktplace,39.52,Hose reel - Sheltered
07/07/2022,Museum S/W,ART TICKETS,9,Place on Norwich Castle Museum Building Conservation Symposium
08/07/2022,Museum S/W,COLORCRAFT,20.5,Spray mount for exhitbion
08/07/2022,Sheltered Housing,AMZNMktplace,19.18,Lockable filing case
11/07/2022,Waste Management,ALDI 76 776,12.42,Water For Environmental Services Teams
11/07/2022,Waste Management,B&M RETAIL LTD,39.25,Water For Environmental Services
11/07/2022,Building Surveying,CHARTERED ASSOCIATION,240,Professional Membership 
12/07/2022,Chief Executive,PAPERSTONE,199,Lateral Flow Tests requested from HR
13/07/2022,Sheltered Housing,B & Q 1198,196.67,Fans for sheltered sites
13/07/2022,Museum S/W,WH SMITH,10.4,White card and labels for exhibtion
13/07/2022,Museum S/W,SAFFRON WALDEN TOURIST,20,Reference book
14/07/2022,Office Services,TESCO STORE 2134,27.5,Tablecloths for Little Canfield
14/07/2022,Housing Services,ZOOM.US 888-799-9666,119.9,Zoom
15/07/2022,Sheltered Housing,HOMEBASE LTD 643,52.5,Top soil for Newcroft
15/07/2022,Museum S/W,HOMEBASE LTD 643,15.41,"Sash cord, screw caps etc for fixings in exhibtion"
15/07/2022,Waste Management,RYMANBUSINESS.COM,46.4,Water for Environmental Services teams
15/07/2022,Waste Management,TESCO STORE 2574,32.04,Water For Environmental Services Staff
15/07/2022,Sheltered Housing,AMZNMktplace,28.32,Cleaning materials - Sheltered
15/07/2022,Museum S/W,WAITROSE 135,4.25,Cleaning materials
16/07/2022,Museum S/W,GreaterAngliaCOM,46.9,Return train ticket � Norwich for symposium 
17/07/2022,Sheltered Housing,AMZNMktplace,15,Cleaning materials
17/07/2022,Sheltered Housing,AMZNMktplace,7.5,Cleaning materials
17/07/2022,Sheltered Housing,AMZNMktplace,15,Cleaning materials
17/07/2022,Sheltered Housing,AMZNMktplace,15,Cleaning materials
17/07/2022,Chief Executive,TESCO STORE 3130,15.2,Refreshments for EELGA Meeting with Chief Executive
18/07/2022,Waste Management,TESCO STORE 2574,23.33,Water for Environmental Services staff
18/07/2022,New Depot (Canfield),TESCO STORE 2574,10,Meeting refreshments
18/07/2022,Waste Management,Euroflorist UK Ltd,26.65,Flowers for resident following an incident during Green Waste collections 
18/07/2022,Office Services,TESCO STORE 2172,4,Catering provisions for room hirers at Little Canfield
19/07/2022,Border Inspection,AMZNMktplace,70.97,"Bucket, cable ties, stanley knives, binder paper clips, scoop"
20/07/2022,Waste Management,DVLA VEHICLE TAX,562.5,Vehicle tax
20/07/2022,Vehicle Maintenance,DVLA VEHICLE TAX,562.5,Vehicle tax
20/07/2022,Vehicle Maintenance,DVLA VEHICLE TAX,292.5,Vehicle tax
20/07/2022,Waste Management,DVLA VEHICLE TAX,302.5,Vehicle tax
20/07/2022,Waste Management,DVLA VEHICLE TAX,562.5,Vehicle tax
20/07/2022,Waste Management,DVLA VEHICLE TAX,562.5,Vehicle tax
20/07/2022,Waste Management,DVLA VEHICLE TAX,562.5,Vehicle tax
20/07/2022,Waste Management,DVLA VEHICLE TAX,562.5,Vehicle tax
20/07/2022,Vehicle Maintenance,DVLA VEHICLE TAX,562.5,Vehicle tax
20/07/2022,Waste Management,DVLA VEHICLE TAX,562.5,Vehicle tax
21/07/2022,Office Services,TESCO STORE 2574,15.2,Catering supplies for room hirers at Little Canfield
22/07/2022,Museum S/W,GA AUDLEY STORTFORD ST,10,Car parking for the day for symposium in Norwich
22/07/2022,Waste Management,PAPERSTONE,114.75,Water for crews during hot weather
22/07/2022,Sheltered Housing,AMZNMKTPLACE AMAZON.CO,26.98,Bluetooth speaker and garden hose connectors - Sheltered
23/07/2022,New Depot (Canfield),iZ  Keys inc,12.08,Keys for lift at Little Canfield
24/07/2022,Sheltered Housing,AMZNMKTPLACE AMAZON.CO,7.19,Signs sheltered
24/07/2022,Sheltered Housing,AMZNMKTPLACE AMAZON.CO,21.25,Fire assembly signs
25/07/2022,Housing Services,WWW.LGSS.CO.UK,16.75,Death Certificate for legal
26/07/2022,Sheltered Housing,AMZNMKTPLACE AMAZON.CO,151.66,Bingo machine - sheltered
27/07/2022,New Depot (Canfield),TOOLSTATION LTD,52.47,Fixing frame
27/07/2022,Sheltered Housing,AMZNMKTPLACE AMAZON.CO,25.48,Fly killer - sheltered sites
27/07/2022,Sheltered Housing,AMZNMKTPLACE AMAZON.CO,15.82,Ant powder
28/07/2022,Museum S/W,RIDGEONS SAFFRON WALDE,31,Museum supplies
28/07/2022,Waste Management,RIDGEONS SAFFRON WALDE,40.13,Materials for repairs following refuse vehicle damage at depot
29/07/2022,Homelessness,LNER WEB SALES,332,Homeless family train ticket
29/07/2022,Waste Management,RIDGEONS SAFFRON WALDE,19.84,Guttering for repairs at depot following refuse vehicle damage
29/07/2022,Waste Management,RIDGEONS SAFFRON WALDE,31.71,Facia Board at depot following refuse vehicle damage
01/08/2022,Museum S/W,WAITROSE 135,4.33,Craft supplies
01/08/2022,Waste Management,RIDGEONS SAFFRON WALDE,13.11,Fixings for metal bracket following refuse vehicle damage
01/08/2022,Sheltered Housing,AMZNMktplace,"2,124.92",Air con units - sheltered
02/08/2022,Museum S/W,QD-SAFFRON WALDEN,4.96,Craft supplies
03/08/2022,Sheltered Housing,AMZNMKTPLACE AMAZON.CO,39.98,Mosquito/fly lamps- Sheltered
03/08/2022,Museum S/W,AMZNMKTPLACE AMAZON.CO,11.36,Craft supplies
04/08/2022,Planning Policy,TESCO STORE 2065,80.1,Lunch for LPLG Member Workshop 
04/08/2022,Museum S/W,MEDLOCK ELECTRICAL,24.9,Replacement tube lights for museum galleries
04/08/2022,Sheltered Housing,AMZNMktplace,29.83,Fire retardant blankets - Sheltered
04/08/2022,Museum S/W,Amazon.co.uk LV8WC2QQ5,9.6,Craft supplies
05/08/2022,New Depot (Canfield),WWW.PLANNING.CO,142.83,Planning Fee to discharge Condition 7 of Planning Permission for redevelopment of Little Canfield
07/08/2022,Sheltered Housing,AMZNMktplace,64.73,Fire resistant carpet - Sheltered
08/08/2022,Waste Management,PAPERSTONE,95.87,Water for Environmental Services crews
08/08/2022,Sheltered Housing,AMZNMktplace,9.71,Hose attachments for Sheltered 
08/08/2022,Planning Policy,PEOPLECERT,83.33,Administration fee for exam
09/08/2022,Sheltered Housing,AMZNMktplace,65.13,Hose Pipes for Sheltered Scheme
09/08/2022,Museum S/W,AMZNMktplace,4.16,Craft supplies
11/08/2022,Museum S/W,AMZNMktplace,3.99,Craft supplies
11/08/2022,Museum S/W,AMZNMktplace,9.96,Hand stamp for activity day
11/08/2022,Chief Executive,TESCO STORES 6812,14.6,Refreshments for meeting with Housing Solutions Ltd
12/08/2022,New Depot (Canfield),WWW.LBSBMONLINE.CO.UK,20.7,Driver inspection chamber
12/08/2022,Chairman,THE FLAG SHOP LTD,7.59,Ukraine Flag 5ft x 3ft to fly at the council offices for Ukraine Day
14/08/2022,Museum S/W,FACEBK  RG6EUEXK82,7,Facebook advert 
16/08/2022,Museum S/W,QD-SAFFRON WALDEN,4.16,Cable ties 
17/08/2022,Museum S/W,FACEBK  HU2PWDTK82,7,Facebook advert 
18/08/2022,Vehicle Maintenance,DVLA VEHICLE TAX,167.5,Vehicle tax
19/08/2022,Museum S/W,WH SMITH,8.32,Craft supplies
19/08/2022,Museum S/W,QD-SAFFRON WALDEN,3.56,"Batteries, screws and nuts for repairs"
19/08/2022,New Depot (Canfield),Fire Protection Online,93.58,Grab box
22/08/2022,New Depot (Canfield),WWW.MANAGEATHOME.CO.UK,36.54,Shower seat for Little Canfield Staff Welfare Facilities
24/08/2022,Print Room,AMZNMKTPLACE AMAZON.CO,24.99,Adhesive vinyl for HCLE fire point stickers
25/08/2022,,DVLA VEHICLE TAX,302.5,
25/08/2022,Museum S/W,QD-SAFFRON WALDEN,15.78,Storage boxes
25/08/2022,,TRAVIS PERKINS,53.36,
30/08/2022,Highway Ranger,WWW.SCREWFIX.COM,33.32,240 V angle grinder for rangers service
30/08/2022,New Depot (Canfield),TIGER SUPPLIES LTD,85.13,Refreshment conference suite
31/08/2022,Democratic Rep,TESCO STORE 3130,27,Planning Cttee refreshments
31/08/2022,Print Room,AWG RAPID SERVICES LTD,32.51,New power adaptor for printroom equipment
01/09/2022,Museum S/W,CLINTONS 756,0.82,Birthday card for museum volunteer
02/09/2022,New Depot (Canfield),TRAVIS PERKINS,33.42,Building repairs
03/09/2022,,iZ  Keys inc,15,
04/09/2022,Museum S/W,FACEBK  WLRWMEBK82,1,Facebook advertising for Museum event
05/09/2022,,HOMEBASE.CO.UK,106,
05/09/2022,New Depot (Canfield),TESCO STORE 2574,2.9,Planning enquiry
05/09/2022,Highway Ranger,C.B. MOWER SERVICES LT,108,Repairs to long reach hedgecutter for Rangers
06/09/2022,Democratic Rep,WAITROSE 135,17.05,Planning Committee refreshments
06/09/2022,,CHARTERED INSTITUTE OF,99,
07/09/2022,Sheltered Housing,AMZNMktplace,34.98,Hose pipe ext x 2
07/09/2022,,Amazon.co.uk JF7C87O35,42.97,
07/09/2022,Highway Ranger,RIDGEONS SAFFRON WALDE,182.96,Materials and equipment for rangers
09/09/2022,Chief Executive,AMZNMKTPLACE AMAZON.CO,40.13,Supplies for Operation London Bridge
10/09/2022,Sheltered Housing,AMZNMktplace,24.79,Dog fouling signs
10/09/2022,,ZOOM.US 888-799-9666,109.62,
11/09/2022,Chief Executive,TESCO STORES 6812,2.8,Operation London Bridge refreshments
11/09/2022,Chief Executive,TESCO STORE 3130,34.21,Refreshments for Operation London Bridge visitors to London Road for Proclamation reading
13/09/2022,Waste Management,D4DRIVERS,45.83,Driver medical for staff member
14/09/2022,Waste Management,Amazon.co.uk 5L4IH8PF5,25,Health and Safety Posters for Depot
14/09/2022,Waste Management,AMZNMktplace,24.14,Banners and bunting for refuse vehicle for Great Dunmow Carnival
15/09/2022,Revenues Admin,SOUTHEND COUNTY,162,
15/09/2022,,GM8 Group LTD,125.39,
15/09/2022,Chairman,JANET RILEY FABRICS,13.6,Black ribbon for Chairman's chain for Operation London Bridge events
16/09/2022,,COLORCRAFT,14.85,
17/09/2022,Waste Management,AMZNMktplace,383.22,Materials for waste officer
17/09/2022,Chief Executive,AMZNMKTPLACE AMAZON.CO,57.42,Sporting equipment for staff event
18/09/2022,Housing Services,AMZNMktplace,35.82,PA speaker system
20/09/2022,Waste Management,AMZ Amazon.co.uk,-12.5,Partial refund for undelivered posters
20/09/2022,Sheltered Housing,AMZNMktplace,28.32,Blue roll for sheltered site
21/09/2022,Museum S/W,RIDGEONS SAFFRON WALDE,21.71,Craft supplies
21/09/2022,,Ernest Doe / Sons,19.99,
21/09/2022,Chief Executive,HILTON BIRMINGHAM METR,32,Hotel parking for Solace Summit
22/09/2022,,AMZNMKTPLACE AMAZON.CO,109.98,
22/09/2022,Chief Executive,TESCO STORE 3108,20.38,Staff event refreshments
23/09/2022,Museum S/W,COLORCRAFT,5.75,Craft supplies
23/09/2022,Waste Management,AMZ Amazon.co.uk,-12.5,Partial refund for undelivered posters
23/09/2022,Waste Management,Amazon.co.uk G71HQ34E5,73.32,Gazeebo for Waste department function
23/09/2022,Chief Executive,TESCO STORE 3130,9.85,Staff event
23/09/2022,,AMZNMKTPLACE AMAZON.CO,6.61,
23/09/2022,,TESCO STORE 3130,0.75,Ice for staff event
24/09/2022,Waste Management,AMZ Amazon.co.uk,-4.99,Postage refund
26/09/2022,Waste Management,TESCO STORE 2574,4.08,Items for use at training day
26/09/2022,,TESCO STORE 2574,32.44,Staff Training event at Lt Canfield
26/09/2022,Homelessness,TRAVELODGE,56.07,Homeless B and B
26/09/2022,Licensing,WWW.COPSHOPUK.COM,23.02,Pocket books for the team
26/09/2022,Chairman,THE POPPY SHOP,50,Poppy Wreath for Remembrance Sunday
27/09/2022,,AIR QUALITY NEWS,180,
27/09/2022,,iZ  Sarah Lloyd-Wi,300,
27/09/2022,Vehicle Maintenance,DVLA VEHICLE TAX,302.5,Vehicle Tax For Refuse Vehicle 
27/09/2022,Vehicle Maintenance,DVLA VEHICLE TAX,302.5,Vehicle Tax For Refuse Vehicle 
27/09/2022,Homelessness,TRAVELODGE,81.57,Homeless B and B
28/09/2022,,TRAVIS PERKINS,32,
28/09/2022,Homelessness,TRAVELODGE,72.22,Homeless B and B
28/09/2022,Democratic Rep,TESCO STORE 3130,27.68,Planning Committee lunch
28/09/2022,Vehicle Maintenance,RAY MOSS AIR TOOL SERV,811,air gun and repair
29/09/2022,,FOOD SAFETY DIRECT,20.38,
29/09/2022,Homelessness,TRAVELODGE,58.63,Homeless B and B
03/10/2022,Museum S/W,B & Q 1322,5.98,Breeze block for exhibition
03/10/2022,Land Charges,GreaterAngliaCOM,30.3,Train ticket for conference
03/10/2022,Waste Management,TESCO STORE 2574,11.92,BBQ Extras for Training Day @ LCBP
03/10/2022,Museum S/W,RNIB CHARITY,87,"RNIB pen friend, making the exhibition more accessible"
03/10/2022,,TESCO STORE 2574,2.88,Refreshments for training session 
03/10/2022,Waste Management,AMZNMktplace,35.82,Health And Safety Posters for LCBP 
04/10/2022,Sheltered Housing,AMZNMktplace,6.83,No smoking signs
05/10/2022,Sheltered Housing,HOMEBASE LTD 643,11.25,Compost - sheltered
06/10/2022,Legal Services,WWW.MONEYCLAIM.GOV,115,Initiating claim against debtors
09/10/2022,,APPLE.COM/BILL,47.99,
10/10/2022,Vehicle Maintenance,DVLA VEHICLE TAX,167.5,Vehicle Tax 
10/10/2022,Vehicle Maintenance,DVLA VEHICLE TAX,302.5,Vehicle Tax 
10/10/2022,Waste Management,TRAVIS PERKINS,5.15,Gutter Clip Replacement Following Refuse Vehicle Damage
10/10/2022,Museum S/W,SP SENSORY EDUCATION,8.94,Sniff pots for exhibition
10/10/2022,Food Inspection,ALEXANDRA WEBSITE,86.33,Hats and coats 
10/10/2022,,SAFETYCULTURE,"1,247.08",
10/10/2022,Homelessness,ARGOS LTD,50,TA curtain poles
11/10/2022,Revenues Admin,FIND A WILL,1.5,Fee for will and probate
11/10/2022,Museum S/W,AMZNMktplace,12.49,Perspex display stands for exhibition
13/10/2022,Museum S/W,EB  COMMUNITY CULTURE-,30,Eventbrite ticket for SHARE conference
13/10/2022,Housing Services,TESCO-STORES 4832,250,Tenant prizes and refreshments
16/10/2022,Museum S/W,iZ  Nudge Boutique,-20.83,Instant Refund obtained after using procurement card by mistake 
16/10/2022,Chairman,AMZNMKTPLACE AMAZON.CO,47.95,Operation London Bridge replacement items - Umbrellas etc
16/10/2022,Museum S/W,iZ  Nudge Boutique,25,"Accidental purchase, later refunded"
17/10/2022,Museum S/W,AMZNMKTPLACE AMAZON.CO,11.99,Plastic goggles for exhibition
17/10/2022,Museum S/W,AMZNMktplace,6.66,White card for exhibition labels
19/10/2022,Homelessness,TRAVELODGE,90.08,Homeless accommodation
19/10/2022,Licensing,UTTLESFORD DISTRICT CO,21,Testing payments
19/10/2022,Licensing,UTTLESFORD DISTRICT CO,213,Testing payments
19/10/2022,Licensing,UTTLESFORD DISTRICT CO,21,Testing payments
19/10/2022,Sheltered Housing,AMZNMktplace,19.59,Kettle - sheltered
19/10/2022,Sheltered Housing,AMZNMktplace,54.16,Microwave - sheltered
20/10/2022,Museum S/W,OXFAM F3941,7.98,Bed sheets for ghost costumes
20/10/2022,Waste Management,WICKES BISHOP'S STORTF,103.33,Battery Powered Lights for Polling Station
21/10/2022,Museum S/W,HIVE STORE LTD,54.41,Books for Lost Language of Nature outreach work
21/10/2022,Museum S/W,SP PELAGICPUBLISHING,21,Reference book
21/10/2022,Street Serv Man,SHUTTERSTOCK IRELAND L,111,Images for Waste & Xmas Guide
21/10/2022,Licensing,UTTLESFORD DISTRICT CO,-21,Testing payments
21/10/2022,Licensing,UTTLESFORD DISTRICT CO,-213,Testing payments
21/10/2022,Licensing,UTTLESFORD DISTRICT CO,-21,Testing payments
22/10/2022,Museum S/W,WH SMITH,11.67,Materials for exhibition 
24/10/2022,Museum S/W,B & Q 1322,14.01,Breeze blocks for sensory sculptures
25/10/2022,Planning Policy,CANVA  I03584-13703768,99.99,Subscription to Canva for digital imaging on Local Plan branding
26/10/2022,New Depot (Canfield),TRAVIS PERKINS,37.5,"Barrier Tape, Filler and stripping knife"
26/10/2022,Democratic Rep,TESCO STORE 3130,28.31,Sandwiches and refreshments for Planning Committee members 
26/10/2022,Museum S/W,SP CRAFTOVATOR,14.5,Exhibition materials
26/10/2022,,IGPP LTD,334.8,
27/10/2022,Border Inspection,OSWALD DONNER & CO,82,Sequentially numbered seals
27/10/2022,Little Canfield Business Park,TESCO STORES 2574,9.17,Table covers for conference suite at Little Canfield
27/10/2022,Sheltered Housing,AMZNMKTPLACE AMAZON.CO,13.67,No smoking signs
27/10/2022,Licensing,UTTLESFORD DISTRICT CO,21,Testing payments
28/10/2022,Museum S/W,MEDLOCK ELECTRICAL,13.6,Replacement light bulb and spares for Museum galleries
28/10/2022,Sheltered Housing,AMZNMktplace,19.98,Baking Trays Sheltered Site 
30/10/2022,Sheltered Housing,AMZNMktplace,22.12,Kitchen Utensils Sheltered Site 
30/10/2022,Economic Development,ADS RFDGEKTGE2,25,Social media advertising for Digital Boost for Business Week
30/10/2022,Sheltered Housing,AMZNMktplace,30.77,Plates Sheltered Site 
31/10/2022,Licensing,UTTLESFORD DISTRICT CO,-21,Testing payments
31/10/2022,Border Inspection,AMZNMktplace,14.72,5 litre Milton steriliser
31/10/2022,Waste Management,TESCO STORES 2574,4.82,Items For BBQ on Training Day for Environmental Services
31/10/2022,Grounds Maintenance,TESCO STORES 2574,8.51,Environmental Services Training refreshments
31/10/2022,Sheltered Housing,AMZNMktplace,21.22,Kitchen Equipment Sheltered Site 
01/11/2022,Museum S/W,RM DESIGN AND PRINT,200,Production of exhibition panels 
01/11/2022,Housing Strategy,TESCO STORES 2574,43.68,Housing/Norse relationship building workshop refreshments
02/11/2022,Licensing,UTTLESFORD DISTRICT CO,100,Testing payments
02/11/2022,Planning Policy,WWW.ARB.ORG.UK,179,Architects Registration Board Membership 
02/11/2022,Street Serv Man,ROYAL MAIL GROUP LTD,7.15,Images for Waste & Xmas Guide
03/11/2022,Street Serv Man,SHUTTERSTOCK IRELAND L,139,Images for Waste & Xmas Guide
03/11/2022,,ROYAL MAIL GROUP LTD,7.15,
03/11/2022,Street Cleansing,AMZNMktplace,19.95,Utility Key's For Street Cleansing Bins etc
03/11/2022,Chairman,PAYPAL  PUFFIN LTD,74.1,Replacement Union Flag for Council Offices
03/11/2022,,ROYAL MAIL GROUP LTD,7.15,
04/11/2022,Homelessness,ARGOS LTD,12.5,TA curtain poles
04/11/2022,Licensing,UTTLESFORD DISTRICT CO,190,Testing payments
04/11/2022,Museum S/W,HOMEBASE LTD 643,16.67,Exhibition materials
04/11/2022,,ROYAL MAIL GROUP LTD,6.35,
06/11/2022,Building Surveying,PREMIER INN,39.58,Breakfast and evening meal for officer whilst on residential apprenticeship course
06/11/2022,Economic Development,ADS 942MKKTGE2,25,Social media advertising for Digital Boost for Business Week
07/11/2022,,ROYAL MAIL GROUP LTD,14.45,
07/11/2022,Sheltered Housing,AMZNMKTPLACE AMAZON.CO,49.16,Mobility scooter matting
07/11/2022,,ROYAL MAIL GROUP LTD,10.65,
08/11/2022,,ROYAL MAIL GROUP LTD,6.35,Special Delivery
08/11/2022,,ROYAL MAIL GROUP LTD,6.35,Special Delivery
08/11/2022,,ROYAL MAIL GROUP LTD,7.15,
08/11/2022,,ROYAL MAIL GROUP LTD,6.35,Special Delivery
09/11/2022,Food Inspection,WWW.COPSHOPUK.COM,26.36,7 pocket notebooks
09/11/2022,Street Cleansing,AMZNMktplace,21.5,T Keys for Street Cleansing Bins etc
10/11/2022,Sheltered Housing,AMZNMktplace,8.98,Bench cover
10/11/2022,Sheltered Housing,AMZNMktplace,8.13,Wall mounted smoking signs
10/11/2022,Museum S/W,SUPERDRUG STORES PLC,9.12,Exhibition materials
10/11/2022,Licensing,UTTLESFORD DISTRICT CO,23,Testing payments
10/11/2022,Museum S/W,WH Smith Saffron Walde,5.83,Exhibition materials
11/11/2022,Museum S/W,MUSEUMSASSC,196.42,Renewal of Institutional Membership for Saffron Walden Museum Membership 
11/11/2022,,ROYAL MAIL GROUP LTD,7.15,
11/11/2022,Economic Development,ADS BSGF5KPGE2,4.3,Meta advertising for Digital Boost Week
11/11/2022,Museum S/W,TOOLSTATION LIMITED,32.97,2 LED battery-operated rechargeable portable spotlights
14/11/2022,,ROYAL MAIL GROUP LTD,7.15,Special Delivery
14/11/2022,,ROYAL MAIL GROUP LTD,7.15,Special Delivery
14/11/2022,,ROYAL MAIL GROUP LTD,6.35,Special Delivery
15/11/2022,Licensing,UTTLESFORD DISTRICT CO,-190,Testing payments
15/11/2022,Licensing,Amazon.co.uk 9N7BJ3W65,134.65,Licensing law book
15/11/2022,,ROYAL MAIL GROUP LTD,6.35,Special Delivery
17/11/2022,Waste Management,MARSHALL VW,117.12,Repairs to Third Party Car Following Refuse Vehicle Damage
17/11/2022,,ROYAL MAIL GROUP LTD,2.35,Special Delivery
17/11/2022,,ROYAL MAIL GROUP LTD,10.65,Special Delivery
17/11/2022,,ROYAL MAIL GROUP LTD,6.35,Special Delivery
19/11/2022,New Depot (Canfield),WICKES BRAINTREE,7.08,Glue for fixing desk
20/11/2022,Museum S/W,Hobbycraft,19.83,Cermaic Baubles for use in the Christmas Marbling Workshop
21/11/2022,Museum S/W,WAITROSE 135,6.2,Materials for activities
21/11/2022,Museum S/W,GRAPE TREE,4.58,Materials for activities
21/11/2022,Museum S/W,SP MARMOR PAPERIE,32.17,Materials for activities
22/11/2022,Chairman,AMZNMKTPLACE AMAZON.CO,6.49,Coffee Stirrers for Chairman's Christmas Carol Service
22/11/2022,,ROYAL MAIL GROUP LTD,6.35,Special Delivery
23/11/2022,Offices Commercial,AMZNMKTPLACE AMAZON.CO,9.15,Padlocks for London Road Hot Desking Suite
23/11/2022,Democratic Rep,TESCO STORES 3130,28.58,Sandwiches for planning committee
23/11/2022,Planning Policy,PAYPAL  GREENJOBSLI,199,Advertising Ecologist role on specialised Ecology web site
23/11/2022,Chairman,AMZNMKTPLACE AMAZON.CO,39.34,"Paper Plates, Cups and Serviettes for Chairman's Carol Service "
23/11/2022,Museum S/W,Amazon.co.uk 1I6QD6F44,9.62,Materials for activities
23/11/2022,New Depot (Canfield),TRAVIS PERKINS,62.72,Christmas Tree
23/11/2022,Offices Commercial,Amazon.co.uk 1B9TG5YT4,62.48,Microwave for sheltered
24/11/2022,Sheltered Housing,AMZNMktplace,43.32,Blinds for guest room for sheltered
24/11/2022,New Depot (Canfield),AMZNMktplace,31.66,For Christmas Tree waterproof extension lead
24/11/2022,Vehicle Maintenance,DVLA VEHICLE TAX,562.5,Vehicle Tax 
24/11/2022,Highway Ranger,RIDGEONS SAFFRON WALDE,95.74,Rangers materials
24/11/2022,Vehicle Maintenance,DVLA VEHICLE TAX,302.5,Vehicle Tax 
24/11/2022,Sheltered Housing,AMZNMktplace,88.33,Blinds for guest room for sheltered
28/11/2022,,ROYAL MAIL GROUP LTD,2.85,Special Delivery
28/11/2022,Housing Services,TESCO STORES 2574,18.04,Cakes for AHH event
28/11/2022,,ROYAL MAIL GROUP LTD,6.35,Special Delivery
28/11/2022,,ROYAL MAIL GROUP LTD,6.35,Special Delivery
28/11/2022,,ROYAL MAIL GROUP LTD,6.35,Special Delivery
29/11/2022,Housing Services,AMZNMKTPLACE AMAZON.CO,36.63,Sheltered diaries
29/11/2022,Housing Services,SHUTTERSTOCK IRELAND L,97,Images for Housing News
29/11/2022,Licensing,UTTLESFORD DISTRICT CO,-100,Testing payments
29/11/2022,Licensing,UTTLESFORD DISTRICT CO,-23,Testing payments
29/11/2022,Museum S/W,Amazon.co.uk 1I3OV02T4,4.57,Materials for activities
30/11/2022,Museum S/W,AMZNMKTPLACE AMAZON.CO,32.43,Materials for activities
30/11/2022,CP Overheads,FACEBK V4NSLKPGE2,25,Meta advertising for Christmas Car Parking promotion
30/11/2022,Museum S/W,AMZNMKTPLACE AMAZON.CO,7.49,Materials for activities
01/12/2022,Highway Ranger,TRAVIS PERKINS,13.67,1 x Pair of Wellington Boots for Rangers
01/12/2022,Sheltered Housing,Amazon.co.uk 1I9T84WL4,153.33,Carpet washer - sheltered sites
01/12/2022,Housing Services,WWW.DORRINGTONS.COM,91.19,TLP meeting refreshments
01/12/2022,Border Inspection,"BOOTS,SAFFRON",1.5,Sharps Box
01/12/2022,New Depot (Canfield),TESCO STORES 2574,33.33,Christmas light for Canfield site
02/12/2022,,ROYAL MAIL GROUP LTD,8.45,Special Delivery
02/12/2022,,ROYAL MAIL GROUP LTD,7.15,Special Delivery
02/12/2022,Housing Services,SP CROSSWORDSITE,11.22,Crossword for WOW
02/12/2022,Chief Executive,CAF� D�J� VU LTD,121,Breakfast for UNSL Christmas Visit to Newport Depot by CE and Leader
02/12/2022,,ROYAL MAIL GROUP LTD,8.45,Special Delivery
02/12/2022,Chairman,AMZNMktplace,64.97,Community Achievement Awards Frames for Certificates
03/12/2022,Museum S/W,TESCO STORES 3130,8.33,Refreshments for event 
05/12/2022,Chief Executive,TESCO STORES 3130,9.4,Gluten Free items for Newport Depot (UNSL) visit by CEO and Leader
05/12/2022,Chief Executive,TESCO STORES 3108,6.5,Christmas Foodbank Order
05/12/2022,,ROYAL MAIL GROUP LTD,6.35,
06/12/2022,Sheltered Housing,Amazon.co.uk 1W25O2QQ4,16.66,Carpet cleaner solution
06/12/2022,Planning Policy,TESCO STORES 2065,26.3,Refreshments for LPLG Working Group
07/12/2022,,AMZNMKTPLACE AMAZON.CO,37.93,Wall Planner Calendar
07/12/2022,,ROYAL MAIL GROUP LTD,7.15,Special Delivery
07/12/2022,Food Inspection,AMZNMktplace,16.48,cable ties x 100 / plastic bags x 100
07/12/2022,,ROYAL MAIL GROUP LTD,6.35,
08/12/2022,New Depot (Canfield),TESCO STORES 2574,8.33,Shower cleaning Canfield site
08/12/2022,Museum S/W,WH Smith Saffron Walde,8.99,2023 Diary / Daybook for sheltered
08/12/2022,,ROYAL MAIL GROUP LTD,12.04,Postage
08/12/2022,,ROYAL MAIL GROUP LTD,14.45,Postage
08/12/2022,,ROYAL MAIL GROUP LTD,6.35,Postage
08/12/2022,Print Room,SHUTTERSTOCK IRELAND L,115.83,Images for council publications
08/12/2022,Vehicle Maintenance,DVLA VEHICLE TAX,152.5,Vehicle Tax 
08/12/2022,Vehicle Maintenance,DVLA VEHICLE TAX,152.5,Vehicle Tax 
08/12/2022,Vehicle Maintenance,DVLA VEHICLE TAX,152.5,Vehicle Tax 
08/12/2022,Vehicle Maintenance,DVLA VEHICLE TAX,167.5,Vehicle Tax 
08/12/2022,Vehicle Maintenance,DVLA VEHICLE TAX,167.5,Vehicle Tax 
08/12/2022,,ELMHURST  #11385,180,
08/12/2022,Waste Management,HEALTH AND CARE,16.66,Winter Gloves 
08/12/2022,Museum S/W,MEDLOCK ELECTRICAL,13.5,Tube light for Museum porch
08/12/2022,Vehicle Maintenance,DVLA VEHICLE TAX,107.5,Vehicle Tax 
11/12/2022,CP Overheads,FACEBK CCDC8L7GE2,18.76,Meta advertising for Christmas car parking promotion
12/12/2022,Sheltered Housing,AMZNMktplace,8.62,Padlocks for sheltered
12/12/2022,Sheltered Housing,AMZNMktplace,14.71,Tape for sheltered sites
12/12/2022,Food Inspection,SAFETYCULTURE.COM,159.12,Auditor Annual Plan
13/12/2022,,ROYAL MAIL GROUP LTD,2.35,Special Delivery
13/12/2022,Sheltered Housing,AMZNMktplace,187.42,Extra heaters for sheltered
13/12/2022,,ROYAL MAIL GROUP LTD,2.35,Special Delivery
13/12/2022,,ROYAL MAIL GROUP LTD,2.35,Special Delivery
13/12/2022,,ROYAL MAIL GROUP LTD,2.35,Special Delivery
13/12/2022,Sheltered Housing,AMZNMktplace,8.46,Glue dots stickers for sheltered signs
14/12/2022,,EIF/PURPLEGUIDE,30,
14/12/2022,Democratic Rep,TESCO STORES 3130,28.95,Sandwiches for Planning Committee members
14/12/2022,Chairman,TESCO STORES 3108,52.05,Chairman's Civic Christmas Service Refreshments
14/12/2022,New Depot (Canfield),AMZNMktplace,39.96,Manhole Cover Lifting Key Set
14/12/2022,Museum S/W,SumUp   Eezeemovers Ca,480,Moving costume collection from Saffron Walden Museum to Shire Hill Store
14/12/2022,CP Overheads,WWW.DORRINGTONS.COM,99.32,Refreshments for NEPP meeting
15/12/2022,Revenues Admin,SOUTHEND COUNTY,200.5,
15/12/2022,Revenues Admin,SOUTHEND COUNTY,229.5,
15/12/2022,Food Inspection,WWW.COPSHOPUK.COM,75.36,Pocket Notebook Holder x 7
16/12/2022,Waste Management,THE SANDWICH SHOP,187.5,Refreshments for Chief Exec & Leaders visit To Depot
16/12/2022,,ROYAL MAIL GROUP LTD,6.35,Special Delivery
18/12/2022,Border Inspection,AMZNMKTPLACE AMAZON.CO,77.18,Scissors x 2 / black cable ties x 800 / overshoes x 300
19/12/2022,,ROYAL MAIL GROUP LTD,6.35,Special Delivery
20/12/2022,Border Inspection,WWW.OURWEIGH.CO.UK,56.35,Class Mi 5kg Iron Calibration Weight
20/12/2022,,ROYAL MAIL GROUP LTD,6.35,
20/12/2022,,C.B. MOWER SERVICES LT,271.68,
21/12/2022,,ROYAL MAIL GROUP LTD,8.45,
21/12/2022,,ROYAL MAIL GROUP LTD,7.15,
21/12/2022,,ROYAL MAIL GROUP LTD,7.15,
21/12/2022,,ROYAL MAIL GROUP LTD,6.35,
22/12/2022,,ROYAL MAIL GROUP LTD,6.35,
29/12/2022,Sheltered Housing,AMZNMktplace,114.83,Sheltered fobs
29/12/2022,Sheltered Housing,TESCO STORES 2574,14.58,Shopping sheltered resident
12/10/2022,Chief exec,SRA,316,Membership fee 
19/10/2022,Chief exec,ADOBE PHOTOGRAPHY,8.32,Printing 
19/11/2022,Chief exec,ADOBE PHOTOGRAPHY,8.32,Printing 
24/11/2022,Chief exec,COMPANIES HOUSE,13,
06/12/2022,Chief exec,VOUCHER EXPRESS,"2,491.25",Vouchers 
06/12/2022,Chief exec,COMPANIES HOUSE,13,
19/12/2022,Chief exec,ADOBE PHOTOGRAPHY,8.32,Printing
04/01/2023,,ROYAL MAIL GROUP LTD, 6.35 ,Special Delivery
04/01/2023,Planning Admin,RTPI, 175.00 ,DM Officers to attend a Mock Public Inquiry
05/01/2023,Chief Executive,TVLICENSING.CO.UK, 159.00 ,TV Licence
05/01/2023,,ROYAL MAIL GROUP LTD, 7.15 ,Special Delivery
05/01/2023,,ROYAL MAIL GROUP LTD, 10.15 ,Special Delivery
05/01/2023,Vehicle Maintenance,DVLA VEHICLE TAX, 302.50 ,Vehicle Tax For Refuse Vehicle 
05/01/2023,Street Cleansing,RIDGEONS SAFFRON WALDE, 35.00 ,Post Mix for Fixing of Dog/Litter Bins
05/01/2023,New Depot (Canfield),AMZ MAD4TOOLS., (39.96),Manhole Cover Lifting Key Set 
05/01/2023,,ROYAL MAIL GROUP LTD, 7.15 ,Special Delivery
08/01/2023,Print Room,AMZNMKTPLACE AMAZON.CO, 24.99 ,2023 desk calendars
08/01/2023,Museum S/W,Wix.com 1033556391, 10.38 ,Wix website domain for learning site
10/01/2023,Sheltered Housing,AMZNMKTPLACE AMAZON.CO, 15.82 ,Carpet shampoo
10/01/2023,Sheltered Housing,AMZNMKTPLACE AMAZON.CO, 9.16 ,Wireless mouse
10/01/2023,Sheltered Housing,AMZNMKTPLACE AMAZON.CO, 9.15 ,Wireless mouse
10/01/2023,Sheltered Housing,AMZNMKTPLACE AMAZON.CO, 9.16 ,AAA batteries
11/01/2023,Democratic Rep,TESCO STORES 3130, 29.17 ,Refreshments for Planning Committee
11/01/2023,Sheltered Housing,AMZNMKTPLACE AMAZON.CO, 17.20 ,AA batteries
11/01/2023,Licensing,AMZNMktplace, 7.99 ,Way to call PHVs
11/01/2023,CP Overheads,FACEBK KTMGRLPGE2, 6.13 ,Meta advert for Christmas Car Parking promotion
12/01/2023,New Depot (Canfield),WWW.SCREWFIX.COM, 66.66 ,Cleaner barrier
12/01/2023,Env Protection,CHARTERED INSTITUTE OF, 340.00 ,Understanding and Applying HHSRS
12/01/2023,"Depot, Gt Dunmow",THE SANDWICH SHOP, 330.00 ,Refreshments
12/01/2023,,ROYAL MAIL GROUP LTD, 6.35 ,Special Delivery
13/01/2023,Commercial Team,WELWYN/HATFIELD DC, 105.00 ,Approved Premises Course 
13/01/2023,New Depot (Canfield),WM MORRISONS STORE, 7.50 ,Table covers for Little Canfield Conference Suite 
13/01/2023,,ROYAL MAIL GROUP LTD, 7.15 ,Special Delivery
13/01/2023,,ROYAL MAIL GROUP LTD, 6.35 ,Special Delivery
13/01/2023,,ROYAL MAIL GROUP LTD, 7.15 ,Special Delivery
13/01/2023,Museum S/W,AMZNMktplace, 19.99 ,Museum printer cartridges
16/01/2023,,ROYAL MAIL GROUP LTD, 6.35 ,Special Delivery
17/01/2023,Museum S/W,WH Smith Saffron Walde, 7.48 ,Ring binders
18/01/2023,Museum S/W,TESCO STORES 3130, 1.25 ,Equipment for sessions
18/01/2023,Museum S/W,AMZNMKTPLACE AMAZON.CO, 2.13 ,Screen wipes for welcome desk
18/01/2023,Museum S/W,AMZNMktplace, 3.74 ,Bulbs for curiosity corner display
18/01/2023,Museum S/W,AMZNMktplace, 4.16 ,Bulbs for curiosity corner display
18/01/2023,,ROYAL MAIL GROUP LTD, 8.45 ,Special Delivery
18/01/2023,,ROYAL MAIL GROUP LTD, 6.35 ,Special Delivery
19/01/2023,Env Protection,CHARTERED INSTITUTE OF, 340.00 ,Fire risk assessment and awareness 
19/01/2023,Env Protection,CHARTERED INSTITUTE OF, 180.00 ,HMO practical inspection
20/01/2023,Border Inspection,WWW.OFFICEBOFFINS.CO.U, 159.95 ,Posture Executive Leather Office Chair
20/01/2023,Development Control,PAYPAL  NARPO, 300.00 ,Advertising Enforcement Role on specialist website
20/01/2023,,ROYAL MAIL GROUP LTD, 6.35 ,Special Delivery
22/01/2023,Border Inspection,AMZNMktplace, 208.31 ,Disposable coats and digital scales
23/01/2023,New Depot (Canfield),WWW.SCREWFIX.COM, 44.98 ,Toilet seat
23/01/2023,Chairman,TESCO STORES 3108, 14.15 ,Long Service Awards Refreshments
24/01/2023,Homelessness,TRAVELODGE, 331.43 ,Decant accommodation
24/01/2023,Museum S/W,Wix.com 1036318609, 114.00 ,Wix learning website hosting for the year
24/01/2023,Vehicle Maintenance,POST OFFICE COUNTER, 6.85 ,Letter posted
24/01/2023,Museum S/W,Celtic Webmerchant, 256.27 ,Equipment for exhibition
25/01/2023,Democratic Rep,TESCO STORES 3130, 28.96 ,Refreshments for Planning Committee 
25/01/2023,Chief Executive,WWW.LOCAL.GOV.UK, 399.00 ,LGA - Chief Executive attending two day District Council Network Conference
25/01/2023,Sheltered Housing,AMZ BlindsOutlet, (88.33),Refund for blinds
25/01/2023,New Depot (Canfield),WWW.SCREWFIX.COM, 49.99 ,Manhole opening kit for site
26/01/2023,Border Inspection,AMZNMktplace, 39.98 ,4 x plastic container boxes 32L
26/01/2023,Border Inspection,QUADRATICA UK LTD, 7.60 ,GSAT Modules 1-5
26/01/2023,Committee Admin,HILTON BIRMINGHAM METR, 30.00 ,Car parking
26/01/2023,,ROYAL MAIL GROUP LTD, 2.35 ,Special Delivery
26/01/2023,,ROYAL MAIL GROUP LTD, 2.35 ,Special Delivery
26/01/2023,,ROYAL MAIL GROUP LTD, 2.35 ,Special delivery
26/01/2023,Vehicle Maintenance,DVLA VEHICLE TAX, 562.50 ,Vehicle Tax 
26/01/2023,New Depot (Canfield),COYLES CAR CARE, 8.32 ,Spare Keys
26/01/2023,Planning Admin,RTPI, (35.00),Refund of recent course - officer couldnt attend
26/01/2023,Museum S/W,PAYPAL  MARAGON, 65.61 ,Materials for exhibition
27/01/2023,Highway Ranger,RIDGEONS SAFFRON WALDE, 66.81 ,Various Materials for Rangers Service
27/01/2023,Sheltered Housing,AMZNMktplace, 32.51 ,No parking signs - Norman Ct
27/01/2023,Democratic Rep,WWW.LOCAL.GOV.UK, 399.00 ,Leader at DCN Conference
28/01/2023,Museum S/W,WAITROSE 135, 6.65 ,Materials for exhibition
31/01/2023,Museum S/W,Braintree District Cou, 6.00 ,Car parking
31/01/2023,Chief Executive,Hotel at Booking.com, 131.67 ,Solace Ignite Seminar - overnight accommodation for Chief Executive
01/02/2023,Comm Safety Partnership,UK Point of Sale Group, 182.00 ,Leaflet holders
02/02/2023,Land Charges,GreaterAngliaCOM, 80.40 ,LLC's conference for LLC Manager
03/02/2023,Museum S/W,EposNow, 132.98 ,Replacement of receipt printer for EPOS till 
03/02/2023,,ROYAL MAIL GROUP LTD, 6.35 ,Special Delivery
03/02/2023,Planning Policy,RTPI, 331.00 ,RTPI 
03/02/2023,Building Surveying,PREMIER INN, 599.12 ,Hotel accommodation for BC Officer attending compulsory residential course for apprenticeship
03/02/2023,Economic Development,SHUTTERSTOCK IRELAND L, 115.83 ,Images for Uttlesford Business Guide
06/02/2023,Sheltered Housing,AMZNMktplace, 165.00 ,Scheme fobs
06/02/2023,Sheltered Housing,AMZNMktplace, 48.33 ,Kitchen rolls
08/02/2023,Sheltered Housing,AMZNMKTPLACE AMAZON.CO, 154.17 ,Bingo machine for sheltered site 
08/02/2023,Legal Services,WWW.MONEYCLAIM.GOV, 70.00 ,Issuing Court Proceedings
08/02/2023,Democratic Rep,TESCO STORES 3130, 29.17 ,Refreshments for planning committee
08/02/2023,Elections,VERSAPAK INTERNATIONAL, 51.90 ,Security seals
09/02/2023,Highway Ranger,WWW.SCREWFIX.COM, 20.23 ,Materials For Rangers Service
09/02/2023,Highway Ranger,RIDGEONS SAFFRON WALDE, 129.27 ,Various Paints And Items fro Rangers
09/02/2023,Street Cleansing,TRAVIS PERKINS, 19.20 ,Post Mix For Litter Bins
09/02/2023,New Depot (Canfield),SCREWFIX DIR LTD, 26.28 ,Cable Ties
10/02/2023,Democratic Rep,TVLICENSING.CO.UK, 159.00 ,TV Licence Renewal Fee
10/02/2023,Commercial Team,ALEXANDRA WEBSITE, 60.79 ,Uniform
10/02/2023,Economic Development,WP ENGINE, 240.00 ,Annual hosting fee for Discover Uttlesford website
12/02/2023,Border Inspection,AMZNMktplace, 39.98 ,4 x storage boxes
13/02/2023,Little Canfield Business Park,BRUNEL ENGRAVING ECOM, 225.48 ,Commemorative plaque for Little Canfield Site
13/02/2023,Elections,AMZNMKTPLACE AMAZON.CO, 161.56 ,Refreshments for Election count venue
13/02/2023,Little Canfield Business Park,BRUNEL ENGRAVING ECOM, 9.95 ,Engraving on Commemorative Plaque for Lt Canfield Site
14/02/2023,Museum S/W,PF CHARGE PARCELS, 15.12 ,Import charges 
14/02/2023,Chief Executive,THE INSTITUTE OF LEADE, 175.00 ,Renewal of Membership of the Institute of Leadership and Management
14/02/2023,Vehicle Maintenance,POST OFFICE COUNTER, 13.85 ,Post office letter
16/02/2023,Border Inspection,APPLE.COM/BILL, 47.99 ,Ipad PDF app
16/02/2023,Sheltered Housing,WAITROSE 135, 5.00 ,Sundries
17/02/2023,Border Inspection,AMZ Amazon.co.uk, (9.99),Scales
17/02/2023,Development Control,ST CLARE HOSPICE, 150.00 ,Ombudsman payment that client asked to be given to charity
19/02/2023,Economic Development,AMZNMKTPLACE AMAZON.CO, 53.29 ,ID badge holders
20/02/2023,Museum S/W,TESCO STORES 3108, 14.76 ,Materials for exhibition
21/02/2023,Community Partnerships,INTERNATIONALWOMENSDAY, 226.79 ,IWD event pack
21/02/2023,Museum S/W,DORSET PERENNIALS, 13.49 ,Materials for exhibition
22/02/2023,Env Protection,AMZNMKTPLACE AMAZON.CO, 54.16 ,Light Meter
22/02/2023,Museum S/W,EposNow, 58.49 ,PDQ Till Roll 
22/02/2023,Sheltered Housing,SAFETY SIGNS 4 LESS, 151.20 ,Fire ext signs
22/02/2023,Democratic Rep,TESCO STORES 3130, 32.00 ,Refreshments for planning committee.
22/02/2023,Planning Policy,RTPI, 258.00 ,RTPI Course 
24/02/2023,Museum S/W,HOMEBASE LTD 643, 79.58 ,Natural History outdoor displays
28/02/2023,New Depot (Canfield),WWW.SCREWFIX.COM, 9.93 ,Car wash hook
28/02/2023,New Depot (Canfield),vidaXL UK, 22.49 ,Car wash plastic chain
28/02/2023,Museum S/W,AROMAPRIME, 24.97 ,Materials for exhibition
01/03/2023,Sheltered Housing,AMZNMktplace, 124.68 ,Pressure washer
01/03/2023,Sheltered Housing,AMZNMktplace, 27.72 ,Pressure washer attachment
01/03/2023,Sheltered Housing,AMZNMKTPLACE AMAZON.CO, 34.08 ,Fire safety signs
01/03/2023,Sheltered Housing,AMZNMKTPLACE AMAZON.CO, 40.90 ,Fire safety signs
01/03/2023,Museum S/W,AMZNMKTPLACE AMAZON.CO, 30.85 ,Light box 
03/03/2023,Sheltered Housing,MYCUSTOMSIGN.CO.UK, 51.67 ,Signage
03/03/2023,Museum S/W,MUSEUMS ASCTN, 91.22 ,Professional membership renewal 
03/03/2023,Sheltered Housing,AMZNMktplace, 24.20 ,Perspex screen
06/03/2023,Sheltered Housing,TESCO STORES 3130, 100.00 ,Goodwill gesture 
06/03/2023,Property Services,TESCO STORES 3130, 50.00 ,50 Compensation
06/03/2023,Property Services,TESCO STORES 3130, 50.00 ,50 Compensation
06/03/2023,Property Services,TESCO STORES 3130, 100.00 ,Compensation 
07/03/2023,Legal Services,HMRC ETMP, 203.94 ,Stamp duty payment
07/03/2023,Sheltered Housing,AMZNMktplace, 110.79 ,Grab rails 
08/03/2023,Housing Services,AMZNBUSINESS 1R3JA5G44, 57.64 ,Shredders for sheltered sites
08/03/2023,Sheltered Housing,AMZNMktplace, 43.07 ,Pressure washer attachment
08/03/2023,Democratic Rep,TESCO STORES 3130, 28.45 ,Refreshments for planning committee
10/03/2023,Museum S/W,WH Smith Saffron Walde, 4.67 ,Materials for exhibition
11/03/2023,Economic Development,FACEBK 5CZKZNXFE2, 9.56 ,Meta advertising for business awards
13/03/2023,,Amazon.co.uk 1R7VJ6S34, 41.01 ,Stationery
15/03/2023,Museum Shop,PROFILE BOOKS LIMITED, 44.91 ,Book order
15/03/2023,Sheltered Housing,QD-SAFFRON WALDEN, 8.38 ,Sundries for sheltered
15/03/2023,Sheltered Housing,AMZNBusiness 1X85I5474, 43.33 ,Kettles for sheltered x2
16/03/2023,Print Room,SHUTTERSTOCK IRELAND L, 92.67 ,Images for council publications
16/03/2023,New Depot (Canfield),SAFETY SIGNS 4 LESS, 46.20 ,Substation compound signs
16/03/2023,Licensing,UTTLESFORD DISTRICT CO, 213.00 ,Test and refund for idox
16/03/2023,Licensing,UTTLESFORD DISTRICT CO, 213.00 ,Test and refund for idox
16/03/2023,Sheltered Housing,AMZNMktplace, 118.73 ,AAA batteries for sheltered torches
17/03/2023,Licensing,UTTLESFORD DISTRICT CO, (213.00),Test and refund for idox
17/03/2023,,WWW.ARGOS.CO.UK, 20.00 ,
17/03/2023,Waste Management,WWW.ANATOMYSTUFF.CO.UK, 315.00 ,Manual Handling Equipment For Training Purposes
17/03/2023,Licensing,UTTLESFORD DISTRICT CO, (213.00),Test and refund for idox
20/03/2023,Revenues Admin,SOUTHEND COUNTY, 152.00 ,County court fees
21/03/2023,Museum S/W,CLINTONS-169, 9.90 ,Cards for volunteers
21/03/2023,Waste Management,AMZNMKTPLACE AMAZON.CO, 68.28 ,"Human Spinal Model, Model Vertebrea for Manual Handling Training "
22/03/2023,Museum S/W,AMZNMKTPLACE AMAZON.CO, 2.99 ,Crafts for exhibitions
22/03/2023,Museum S/W,AMZNMKTPLACE AMAZON.CO, 23.32 ,Poster paint for crafts
22/03/2023,Museum S/W,RIDGEONS SAFFRON WALDE, 3.06 ,Crafts for exhibitions
22/03/2023,Museum S/W,TOOLSTATION UK, 52.80 ,Materials for exhibition
22/03/2023,Museum S/W,Amazon.co.uk KY3R96Y45, 17.30 ,Crafts for exhibitions
22/03/2023,Museum S/W,RIDGEONS SAFFRON WALDE, 52.00 ,Crafts for exhibitions
23/03/2023,Chief Executive,PREMIER INN, 88.33 ,Solace Annual Charity Dinner
23/03/2023,Chief Executive,PREMIER INN, 118.33 ,Chief Executive attending Palace of Westminster for Kestrel Queen's award 
23/03/2023,Sheltered Housing,AMZNMktplace, 15.98 ,Glue dots for sheltered signs
23/03/2023,Sheltered Housing,AMZNMktplace, 13.12 ,No smoking signs
23/03/2023,Waste Management,Amazon.co.uk 6Z05Y2LG5, 26.98 ,Hard Copy Visitors Book and Accident Log Book
24/03/2023,Museum S/W,RIDGEONS SAFFRON WALDE, 14.31 ,Crafts for exhibitions
24/03/2023,Sheltered Housing,AMZNMktplace, 13.53 ,Smoking permitted signs 
25/03/2023,Museum S/W,SAINSBURY'S S/MKT, 54.93 ,Materials for exhibition
26/03/2023,,ZOOM.US 888-799-9666, 263.09 ,
26/03/2023,Waste Management,AMZNMktplace, 54.96 ,Bluetooth Speaker for Training & 3x Highway Code Books
27/03/2023,Museum S/W,CLINTONS-169, 6.60 ,Cards for volunteers
27/03/2023,Env Protection,CHARTERED INSTITUTE OF, 70.00 ,Air Quality conference
27/03/2023,Museum S/W,CLINTONS-169, (9.90),REFUND of cards for volunteers
28/03/2023,Museum S/W,AMZNMktplace, 28.29 ,Crafts for exhibitions
29/03/2023,Museum S/W,Amazon.co.uk DL62O4095, 7.27 ,Crafts for exhibitions
29/03/2023,Museum S/W,QD-SAFFRON WALDEN, 9.13 ,Crafts for exhibitions
29/03/2023,Museum S/W,AMZNMktplace, 24.43 ,Crafts for exhibitions
29/03/2023,Development Control,TESCO STORES 3130, 82.55 ,Planning PAS meeting refreshments
